bitfinex-derivatives/quotes_BTCF0:USTF0_20240923
["timestamp","ask_amount","ask_price","bid_price","bid_amount"]
[1727134702343,0.173822,63437.0,63434.0,0.078826]
[1727134703745,0.179822,63437.0,63434.0,0.079826]
[1727134703944,0.20305871,63437.0,63434.0,0.079826]
[1727134704531,0.20305871,63437.0,63435.0,0.078824]
[1727134704748,0.20605871,63437.0,63435.0,0.078824]
[1727134705536,0.20305871,63437.0,63435.0,0.078824]
[1727134705736,0.19805871,63437.0,63435.0,0.080824]
[1727134705935,0.001,63437.0,63436.0,0.078823]
[1727134706142,0.001,63437.0,63436.0,0.126323]
[1727134706343,0.001,63437.0,63436.0,0.236323]
[1727134707341,0.004,63437.0,63436.0,0.238323]
[1727134711143,0.004,63437.0,63436.0,0.128323]
[1727134711344,0.004,63437.0,63436.0,0.080823]
[1727134721775,0.004,63437.0,63436.0,0.002]
[1727134721776,0.082822,63437.0,63436.0,0.002]
[1727134722066,0.082822,63437.0,63419.0,0.078844]
[1727134722067,1.07692,63437.0,63429.0,0.078831]
[1727134722248,1.07692,63437.0,63423.0,0.0037]
[1727134722249,0.078833,63428.0,63423.0,0.0037]
[1727134722558,0.078833,63428.0,63421.0,0.04706104]
[1727134722559,0.078833,63428.0,63427.0,0.078834]
[1727134722857,0.11,63430.0,63429.0,0.078832]
[1727134723254,0.11,63430.0,63429.0,0.079832]
[1727134724159,0.113,63430.0,63429.0,0.079832]
[1727134725161,0.117,63430.0,63429.0,0.080832]
[1727134725463,0.14033838,63430.0,63429.0,0.080832]
[1727134725865,0.21916938,63430.0,63429.0,0.080832]
[1727134726659,0.21916938,63430.0,63429.0,0.002]
[1727134727260,0.10916938,63430.0,63429.0,0.002]
[1727134727463,0.21916938,63430.0,63429.0,0.002]
[1727134731463,0.10916938,63430.0,63429.0,0.002]
[1727134731666,0.21916938,63430.0,63429.0,0.002]
[1727134732271,0.41669587,63430.0,63413.0,0.43965]
[1727134732561,0.11,63419.0,63415.0,0.0037]
[1727134732755,0.07884,63422.0,63413.0,0.3608]
[1727134733263,0.07884,63422.0,63416.0,0.078848]
[1727134733464,0.07884,63422.0,63418.0,0.004]
[1727134733964,0.15750849,63422.0,63418.0,0.004]
[1727134734157,0.15750849,63422.0,63416.0,0.188848]
[1727134734158,0.07884,63422.0,63416.0,0.188848]
[1727134734358,0.07884,63422.0,63418.0,0.004]
[1727134734964,0.10282076,63422.0,63418.0,0.004]
[1727134735360,0.10282076,63422.0,63416.0,0.194848]
[1727134735760,0.10282076,63422.0,63418.0,0.004]
[1727134735954,0.10282076,63422.0,63418.0,0.008]
[1727134736463,0.10282076,63422.0,63418.0,0.004]
[1727134737065,0.078842,63421.0,63418.0,0.004]
[1727134737258,0.078842,63421.0,63418.0,0.008]
[1727134737571,0.078842,63421.0,63418.0,0.004]
[1727134738368,0.078843,63420.0,63418.0,0.004]
[1727134738659,0.078843,63420.0,63418.0,0.008]
[1727134738858,0.078844,63419.0,63418.0,0.008]
[1727134739064,0.078844,63419.0,63418.0,0.004]
[1727134739251,0.078844,63419.0,63418.0,0.008]
[1727134739655,0.15751249,63419.0,63418.0,0.008]
[1727134739861,0.20631249,63419.0,63418.0,0.004]
[1727134740063,0.127644,63419.0,63418.0,0.008]
[1727134740762,0.07885,63414.0,63413.0,0.3608]
[1727134740966,0.18885,63414.0,63413.0,0.3608]
[1727134741265,0.078852,63413.0,63409.0,0.3608]
[1727134741459,0.0037,63418.0,63409.0,0.3608]
[1727134741659,0.078849,63416.0,63414.0,0.18885]
[1727134741853,0.003,63419.0,63415.0,0.078849]
[1727134742059,0.003,63419.0,63415.0,0.439649]
[1727134742259,0.003,63419.0,63417.0,0.11]
[1727134742971,0.078844,63420.0,63417.0,0.11]
[1727134743765,0.078844,63420.0,63417.0,0.188847]
[1727134745369,0.078844,63420.0,63417.0,0.078847]
[1727134752168,0.078844,63420.0,63418.0,0.078845]
[1727134753378,0.079844,63420.0,63418.0,0.078845]
[1727134754463,0.080844,63420.0,63418.0,0.078845]
[1727134756187,0.080844,63420.0,63419.0,0.078844]
[1727134757370,0.081844,63420.0,63419.0,0.078844]
[1727134758179,0.080844,63420.0,63419.0,0.078844]
[1727134758371,0.082844,63420.0,63419.0,0.078844]
[1727134760980,0.004,63420.0,63419.0,0.078844]
[1727134762081,0.002,63420.0,63419.0,0.078844]
[1727134762281,0.002,63420.0,63419.0,0.080844]
[1727134763582,0.02733119,63424.0,63423.0,0.078839]
[1727134763779,0.02363119,63424.0,63423.0,0.078839]
[1727134764076,0.078838,63425.0,63423.0,0.078839]
[1727134764278,0.078838,63424.0,63423.0,0.078839]
[1727134764481,0.078843,63421.0,63420.0,0.078843]
[1727134764675,0.188843,63421.0,63420.0,0.078843]
[1727134765083,0.26740843,63421.0,63420.0,0.078843]
[1727134765282,0.078845,63418.0,63417.0,0.078847]
[1727134767784,0.078845,63418.0,63417.0,0.082847]
[1727134768386,0.078845,63418.0,63417.0,0.086847]
[1727134771383,0.1029384,63418.0,63417.0,0.086847]
[1727134777701,0.1029384,63418.0,63417.0,0.008]
[1727134779094,0.12850143,63418.0,63417.0,0.008]
[1727134779306,0.1481384,63418.0,63417.0,0.008]
[1727134780091,0.1481384,63418.0,63415.0,0.078848]
[1727134780092,1.06874988,63418.0,63410.0,0.06282803]
[1727134780292,0.07886,63406.0,63405.0,0.0037]
[1727134780591,0.07886,63406.0,63399.0,0.43908574]
[1727134780592,0.21442738,63406.0,63399.0,0.3608]
[1727134780796,0.21442738,63406.0,63389.0,0.0969]
[1727134780797,0.4708,63400.0,63394.0,0.0037]
[1727134781007,0.11,63395.0,63390.0,0.0037]
[1727134781197,0.11,63395.0,63389.0,0.175781]
[1727134781198,0.078876,63394.0,63389.0,0.175781]
[1727134782506,0.078876,63394.0,63392.0,0.3878]
[1727134785496,0.078876,63394.0,63392.0,0.027]
[1727134788198,0.157753,63394.0,63392.0,0.027]
[1727134788397,0.078877,63393.0,63392.0,0.027]
[1727134789604,0.078877,63393.0,63392.0,0.026]
[1727134789605,0.079877,63393.0,63392.0,0.026]
[1727134790303,0.080877,63393.0,63392.0,0.026]
[1727134801319,0.080877,63393.0,63392.0,0.104878]
[1727134806026,0.002,63393.0,63392.0,0.104878]
[1727134807325,0.002,63393.0,63392.0,0.214878]
[1727134809327,0.002,63393.0,63392.0,0.31323016]
[1727134811027,0.002,63393.0,63392.0,0.39210816]
[1727134811727,0.002,63393.0,63392.0,0.48638868]
[1727134812519,0.002,63393.0,63392.0,0.95962868]
[1727134812730,0.0037,63400.0,63399.0,0.078869]
[1727134813020,0.188858,63408.0,63399.0,0.078869]
[1727134813021,0.0037,63407.0,63399.0,0.64744225]
[1727134813222,0.02394529,63409.0,63406.0,0.3608]
[1727134813422,0.125255,63411.0,63410.0,0.078855]
[1727134815320,0.14892887,63411.0,63410.0,0.078855]
[1727134815732,0.15392887,63411.0,63410.0,0.078855]
[1727134818338,0.15892887,63411.0,63410.0,0.078855]
[1727134819834,0.08007387,63411.0,63406.0,0.3608]
[1727134820025,0.4708,63407.0,63402.0,0.082565]
[1727134820228,0.4708,63407.0,63402.0,0.078865]
[1727134820229,0.11,63403.0,63402.0,0.078865]
[1727134821531,0.11,63403.0,63402.0,0.081865]
[1727134821931,0.11,63403.0,63402.0,0.084865]
[1727134823742,0.078863,63404.0,63402.0,0.084865]
[1727134823937,0.11,63403.0,63402.0,0.084865]
[1727134825751,0.11,63403.0,63402.0,0.081865]
[1727134826041,0.11,63403.0,63402.0,0.084865]
[1727134828231,0.188864,63403.0,63402.0,0.084865]
[1727134828642,0.235264,63403.0,63402.0,0.084865]
[1727134832536,0.235264,63403.0,63402.0,0.006]
[1727134832737,0.787288,63403.0,63402.0,0.004]
[1727134833148,0.8128581,63403.0,63402.0,0.004]
[1727134833645,1.41285873,63403.0,63402.0,0.004]
[1727134833946,0.078873,63396.0,63395.0,0.00236613]
[1727134834151,0.188873,63396.0,63395.0,0.00236613]
[1727134835038,0.189873,63396.0,63395.0,0.01236613]
[1727134835349,0.190873,63396.0,63395.0,0.02236613]
[1727134838051,0.080873,63396.0,63395.0,0.02]
[1727134838254,0.190873,63396.0,63395.0,0.02]
[1727134838439,0.269746,63396.0,63395.0,0.02]
[1727134838751,0.34850397,63396.0,63395.0,0.02]
[1727134839251,0.29531964,63396.0,63395.0,0.02]
[1727134839751,0.82166238,63396.0,63395.0,0.02]
[1727134839945,0.080873,63396.0,63395.0,0.02]
[1727134840451,0.104824,63396.0,63395.0,0.02]
[1727134853358,0.002,63396.0,63395.0,0.098874]
[1727134854154,0.002,63396.0,63395.0,0.16167533]
[1727134854353,0.0037,63403.0,63402.0,0.078865]
[1727134854661,0.07886,63407.0,63406.0,0.07886]
[1727134854864,0.0236841,63407.0,63406.0,0.07516]
[1727134855159,0.11,63407.0,63406.0,0.07516]
[1727134856360,0.113,63407.0,63406.0,0.07516]
[1727134857859,0.113,63407.0,63406.0,0.08416]
[1727134858453,0.113,63407.0,63406.0,0.09516]
[1727134858454,0.112,63407.0,63406.0,0.09516]
[1727134859466,0.112,63407.0,63406.0,0.09716]
[1727134859654,0.112,63407.0,63406.0,0.022]
[1727134861257,0.190859,63407.0,63406.0,0.022]
[1727134862166,0.190859,63407.0,63406.0,0.017]
[1727134862760,0.111,63407.0,63406.0,0.006]
[1727134864265,0.078859,63407.0,63406.0,0.008]
[1727134864760,0.188859,63407.0,63406.0,0.003]
[1727134864963,0.078859,63407.0,63406.0,0.003]
[1727134865272,0.188859,63407.0,63406.0,0.003]
[1727134865459,0.188859,63407.0,63406.0,0.002]
[1727134865659,0.188859,63407.0,63406.0,0.003]
[1727134866372,0.188859,63407.0,63406.0,0.008]
[1727134867760,0.189859,63407.0,63406.0,0.012]
[1727134868160,0.189859,63407.0,63406.0,0.011]
[1727134868360,0.188859,63407.0,63406.0,0.01]
[1727134868766,0.188859,63407.0,63406.0,0.005]
[1727134868968,0.188859,63407.0,63406.0,0.01]
[1727134870860,0.189859,63407.0,63406.0,0.006]
[1727134871061,0.189859,63407.0,63406.0,0.012]
[1727134871373,0.188859,63407.0,63406.0,0.011]
[1727134871670,0.188859,63407.0,63406.0,0.005]
[1727134871874,0.188859,63407.0,63406.0,0.01]
[1727134877170,0.07886,63406.0,63402.0,0.078865]
[1727134877370,0.11,63403.0,63402.0,0.078865]
[1727134878773,0.111,63403.0,63402.0,0.087865]
[1727134878979,0.111,63403.0,63402.0,0.009]
[1727134878980,0.189864,63403.0,63402.0,0.009]
[1727134879580,0.21543495,63403.0,63402.0,0.009]
[1727134879883,0.21543495,63403.0,63402.0,0.018]
[1727134879884,0.23964764,63403.0,63402.0,0.018]
[1727134880080,0.23964774,63403.0,63402.0,0.018]
[1727134880281,0.71280774,63403.0,63402.0,0.018]
[1727134880784,0.71080774,63403.0,63402.0,0.003]
[1727134881081,0.23864774,63403.0,63402.0,0.013]
[1727134881283,0.28694774,63403.0,63402.0,0.013]
[1727134881778,0.28694774,63403.0,63402.0,0.006]
[1727134881779,0.28594774,63403.0,63402.0,0.006]
[1727134882480,0.078866,63402.0,63391.0,0.0470916]
[1727134882670,0.11,63393.0,63392.0,0.0470916]
[1727134882870,0.11,63393.0,63391.0,0.0470916]
[1727134883071,0.11,63392.0,63391.0,0.0470916]
[1727134883680,0.11,63392.0,63391.0,0.014]
[1727134884272,0.11,63392.0,63388.0,0.1259736]
[1727134884477,0.002,63392.0,63391.0,0.028]
[1727134885271,0.080878,63392.0,63391.0,0.028]
[1727134885587,0.190878,63392.0,63391.0,0.028]
[1727134886384,0.190878,63392.0,63388.0,0.100882]
[1727134886577,0.11,63389.0,63388.0,0.1479736]
[1727134886769,0.11,63389.0,63388.0,0.1369736]
[1727134886977,0.11,63389.0,63388.0,0.089882]
[1727134887175,0.11,63389.0,63388.0,0.12594283]
[1727134887482,0.11,63389.0,63388.0,0.13694283]
[1727134888083,0.112,63389.0,63388.0,0.14794283]
[1727134891883,0.112,63389.0,63388.0,0.100882]
[1727134894607,0.002,63389.0,63388.0,0.14794283]
[1727134894810,0.002,63389.0,63388.0,0.100882]
[1727134896315,0.002,63389.0,63388.0,0.14792811]
[1727134897302,0.002,63389.0,63388.0,0.100882]
[1727134901711,0.002,63389.0,63388.0,0.14795072]
[1727134903418,0.002,63389.0,63388.0,0.100882]
[1727134904020,0.002,63389.0,63388.0,0.14796111]
[1727134904222,0.002,63389.0,63388.0,0.100882]
[1727134905811,0.080881,63389.0,63388.0,0.022]
[1727134906310,0.080881,63389.0,63388.0,0.06909708]
[1727134906510,0.080881,63389.0,63388.0,0.022]
[1727134907213,0.080881,63389.0,63388.0,0.06909708]
[1727134909711,0.15965982,63389.0,63388.0,0.022]
[1727134910111,0.080881,63389.0,63388.0,0.022]
[1727134910309,0.15973023,63389.0,63388.0,0.022]
[1727134911918,0.080881,63389.0,63388.0,0.022]
[1727134914321,0.002,63389.0,63388.0,0.022]
[1727134914623,0.002,63389.0,63388.0,0.100883]
[1727134919024,0.002,63389.0,63388.0,0.12438347]
[1727134924132,0.002,63389.0,63388.0,0.100883]
[1727134926723,0.002,63389.0,63388.0,0.700883]
[1727134927032,0.002,63389.0,63388.0,1.35184669]
[1727134927249,0.0037,63397.0,63395.0,0.078874]
[1727134927536,0.0037,63403.0,63402.0,0.078865]
[1727134927728,0.078858,63409.0,63402.0,0.42355376]
[1727134927729,0.188858,63409.0,63402.0,0.42355376]
[1727134927926,0.188858,63409.0,63405.0,0.04706295]
[1727134928128,0.188858,63409.0,63402.0,0.42355376]
[1727134928129,0.188858,63409.0,63406.0,0.04706295]
[1727134928525,0.188858,63409.0,63404.0,0.04706295]
[1727134928725,0.188858,63409.0,63405.0,0.0498]
[1727134929136,0.188858,63409.0,63407.0,0.078858]
[1727134929325,0.188858,63409.0,63405.0,0.14596295]
[1727134929528,0.11,63412.0,63408.0,0.3608]
[1727134930229,0.11,63412.0,63411.0,0.078854]
[1727134930423,0.02369005,63413.0,63411.0,0.078854]
[1727134930628,0.16,63414.0,63411.0,0.078854]
[1727134930828,0.078853,63413.0,63411.0,0.078854]
[1727134931131,0.16,63414.0,63408.0,0.3608]
[1727134931132,0.078854,63411.0,63408.0,0.3608]
[1727134931433,0.16,63409.0,63408.0,0.3608]
[1727134931627,0.16,63409.0,63405.0,0.004]
[1727134931827,0.078859,63408.0,63405.0,0.004]
[1727134932330,0.078859,63408.0,63403.0,0.078864]
[1727134932532,0.16,63404.0,63403.0,0.078864]
[1727134934031,0.161,63404.0,63403.0,0.084864]
[1727134934546,0.161,63404.0,63403.0,0.089864]
[1727134935237,0.001,63404.0,63403.0,0.089864]
[1727134935438,0.161,63404.0,63403.0,0.011]
[1727134935633,0.239863,63404.0,63403.0,0.011]
[1727134937739,0.001,63404.0,63403.0,0.089864]
[1727134939244,0.001,63404.0,63403.0,0.563024]
[1727134942354,0.001,63404.0,63403.0,0.641888]
[1727134942655,0.001,63404.0,63403.0,1.28895095]
[1727134942842,0.0037,63413.0,63412.0,0.078853]
[1727134943037,0.078845,63419.0,63411.0,0.3608]
[1727134943242,0.00606629,63420.0,63419.0,0.078844]
[1727134943435,0.0492,63422.0,63421.0,0.078842]
[1727134943641,0.078837,63425.0,63414.0,0.0037]
[1727134943951,0.078837,63425.0,63412.0,0.1637]
[1727134944142,0.007,63413.0,63412.0,0.242553]
[1727134944337,0.007,63413.0,63412.0,0.26264172]
[1727134944538,0.007,63413.0,63412.0,1.33572172]
[1727134944539,0.004,63413.0,63412.0,1.33572172]
[1727134944737,0.0037,63420.0,63419.0,0.157688]
[1727134944939,0.013,63422.0,63421.0,0.078842]
[1727134945250,0.013,63422.0,63421.0,0.678842]
[1727134945446,0.013,63422.0,63421.0,1.151882]
[1727134945636,0.013,63422.0,63421.0,1.230724]
[1727134945841,0.0037,63428.0,63421.0,1.230724]
[1727134945842,0.008,63435.0,63434.0,0.078826]
[1727134946041,0.0464,63446.0,63434.0,0.3608]
[1727134946449,0.16,63444.0,63434.0,0.3608]
[1727134946846,0.16,63444.0,63438.0,0.07882]
[1727134947047,0.1835773,63444.0,63438.0,0.07882]
[1727134947241,0.16,63440.0,63438.0,0.07882]
[1727134948357,0.16,63440.0,63438.0,0.07982]
[1727134948546,0.078818,63441.0,63438.0,0.07982]
[1727134948747,0.2118,63443.0,63438.0,0.001]
[1727134948944,0.2118,63443.0,63434.0,0.3608]
[1727134948945,0.004,63443.0,63442.0,0.078816]
[1727134949651,0.0464,63446.0,63443.0,0.078814]
[1727134949849,0.069871,63446.0,63443.0,0.078814]
[1727134950151,0.148683,63446.0,63443.0,0.078814]
[1727134950657,0.078813,63444.0,63442.0,0.001]
[1727134950852,0.16,63443.0,63438.0,0.07982]
[1727134951048,0.238814,63443.0,63438.0,0.001]
[1727134951245,0.238814,63443.0,63435.0,0.0464]
[1727134951548,0.069871,63446.0,63434.0,0.3608]
[1727134951549,0.238819,63439.0,63434.0,0.3608]
[1727134951749,0.238819,63439.0,63435.0,0.078824]
[1727134952060,0.16,63443.0,63434.0,0.3608]
[1727134952751,0.078817,63441.0,63438.0,0.001]
[1727134954249,0.078817,63441.0,63437.0,0.078822]
[1727134954652,0.078817,63441.0,63438.0,0.001]
[1727134955157,0.082817,63441.0,63438.0,0.002]
[1727134955753,0.082817,63441.0,63438.0,0.08082]
[1727134956157,0.082817,63441.0,63438.0,0.07982]
[1727134956773,0.082817,63441.0,63438.0,0.08082]
[1727134957451,0.082817,63441.0,63439.0,0.078819]
[1727134957650,0.078818,63440.0,63438.0,0.002]
[1727134957957,0.16,63439.0,63438.0,0.002]
[1727134958552,0.16,63439.0,63438.0,0.001]
[1727134959052,0.238819,63439.0,63438.0,0.001]
[1727134961156,0.242819,63439.0,63438.0,0.002]
[1727134961362,0.082819,63439.0,63438.0,0.002]
[1727134962563,0.15471387,63439.0,63438.0,0.002]
[1727134965563,0.15471387,63439.0,63427.0,0.078834]
[1727134965762,0.16,63433.0,63427.0,0.078834]
[1727134965962,0.16,63433.0,63428.0,0.078833]
[1727134965963,0.078829,63431.0,63428.0,0.078833]
[1727134966355,0.078829,63431.0,63429.0,0.078831]
[1727134967364,0.3608,63434.0,63433.0,0.078827]
[1727134967559,0.078824,63435.0,63433.0,0.078827]
[1727134968268,0.12742,63439.0,63436.0,0.078823]
[1727134968771,0.078821,63438.0,63436.0,0.078823]
[1727134970467,0.080821,63438.0,63436.0,0.078823]
[1727134972069,0.085821,63438.0,63436.0,0.078823]
[1727134974571,0.085821,63438.0,63432.0,0.04683652]
[1727134974572,0.078826,63434.0,63432.0,0.04683652]
[1727134974760,0.078826,63434.0,63430.0,0.06275376]
[1727134974761,0.16,63433.0,63430.0,0.04683652]
[1727134975565,0.078828,63432.0,63430.0,0.04683652]
[1727134975763,0.078828,63432.0,63431.0,0.04683652]
[1727134976177,0.078828,63432.0,63430.0,0.04683652]
[1727134976579,0.078828,63432.0,63430.0,0.04783652]
[1727134977173,0.078828,63432.0,63431.0,0.078829]
[1727134978086,0.078829,63431.0,63430.0,0.04683652]
[1727134978278,0.18358158,63433.0,63423.0,0.3608]
[1727134978279,0.078831,63430.0,63429.0,0.0470173]
[1727134978574,0.078832,63429.0,63428.0,0.0470173]
[1727134978779,0.16,63430.0,63423.0,0.439639]
[1727134978780,0.078833,63428.0,63427.0,0.0470173]
[1727134980578,0.16,63430.0,63427.0,0.003]
[1727134980579,0.31768023,63430.0,63427.0,0.003]
[1727134980783,0.07884923,63428.0,63427.0,0.003]
[1727134980979,0.10439299,63428.0,63427.0,0.003]
[1727134981484,0.078836,63426.0,63423.0,0.3608]
[1727134981681,0.15756513,63426.0,63423.0,0.3608]
[1727134982381,0.078836,63426.0,63423.0,0.3608]
[1727134982685,0.16,63424.0,63423.0,0.3608]
[1727134982987,0.16,63424.0,63423.0,0.3688]
[1727134984286,0.238838,63424.0,63423.0,0.3688]
[1727134984587,0.599638,63424.0,63423.0,0.015]
[1727134985585,0.67836713,63424.0,63423.0,0.015]
[1727134986680,0.599638,63424.0,63423.0,0.015]
[1727134990583,0.678476,63424.0,63423.0,0.015]
[1727134990877,0.439638,63424.0,63423.0,0.0006]
[1727134995487,0.238838,63424.0,63423.0,0.0006]
[1727135002694,0.317676,63424.0,63423.0,0.0006]
[1727135002895,0.238838,63424.0,63423.0,0.0006]
[1727135003501,0.31756713,63424.0,63423.0,0.0006]
[1727135003999,0.238838,63424.0,63423.0,0.0006]
[1727135004593,0.599638,63424.0,63423.0,0.0006]
[1727135004790,0.62519975,63424.0,63423.0,0.0006]
[1727135005707,0.26439975,63424.0,63423.0,0.0006]
[1727135006099,0.62519975,63424.0,63423.0,0.0006]
[1727135008205,0.02556175,63424.0,63423.0,0.079439]
[1727135009114,0.02556175,63425.0,63423.0,0.079439]
[1727135009404,0.02556175,63424.0,63423.0,0.079439]
[1727135009604,0.02556175,63425.0,63423.0,0.079439]
[1727135009819,0.02556175,63424.0,63423.0,0.079439]
[1727135010008,0.078836,63426.0,63424.0,0.078838]
[1727135010203,0.02556063,63425.0,63424.0,0.078838]
[1727135010701,0.02656063,63425.0,63424.0,0.078838]
[1727135011101,0.02556063,63425.0,63424.0,0.078838]
[1727135011404,0.02656063,63425.0,63424.0,0.084838]
[1727135011814,0.02756063,63425.0,63424.0,0.084838]
[1727135012111,0.02656063,63425.0,63424.0,0.090838]
[1727135017815,0.02656063,63425.0,63424.0,0.1378553]
[1727135017816,0.001,63425.0,63424.0,0.1378553]
[1727135018019,0.001,63425.0,63424.0,0.090838]
[1727135018222,0.079837,63425.0,63424.0,0.13790911]
[1727135019822,0.10539611,63425.0,63424.0,0.090838]
[1727135020314,0.001,63425.0,63424.0,0.090838]
[1727135021724,0.07980629,63425.0,63424.0,0.090838]
[1727135026723,0.001,63425.0,63424.0,0.090838]
[1727135034131,0.001,63425.0,63424.0,0.13788672]
[1727135034431,0.001,63425.0,63424.0,0.090838]
[1727135034631,0.001,63425.0,63424.0,0.13787797]
[1727135035222,0.001,63425.0,63424.0,0.090838]
[1727135035930,0.079837,63425.0,63424.0,0.090838]
[1727135037237,0.15864329,63425.0,63424.0,0.090838]
[1727135041854,0.079837,63425.0,63424.0,0.090838]
[1727135043043,0.079837,63425.0,63424.0,0.012]
[1727135045330,0.15867237,63425.0,63424.0,0.012]
[1727135045731,0.10539687,63425.0,63424.0,0.012]
[1727135051129,0.29423387,63425.0,63424.0,0.012]
[1727135051335,0.29423477,63425.0,63424.0,0.012]
[1727135055948,0.268674,63425.0,63424.0,0.012]
[1727135056151,0.29423581,63425.0,63424.0,0.012]
[1727135057041,0.65503581,63425.0,63424.0,0.012]
[1727135061447,0.29423581,63425.0,63424.0,0.012]
[1727135061648,0.65503581,63425.0,63424.0,0.012]
[1727135061958,0.57619881,63425.0,63424.0,0.012]
[1727135062343,0.19994575,63425.0,63424.0,0.122]
[1727135062648,0.02656181,63425.0,63424.0,0.200838]
[1727135062854,0.0797841,63425.0,63424.0,0.200838]
[1727135063048,0.001,63425.0,63424.0,0.200838]
[1727135063844,0.001,63425.0,63424.0,0.24789345]
[1727135064645,0.001,63425.0,63424.0,0.13789345]
[1727135064845,0.001,63425.0,63424.0,0.090838]
[1727135067249,0.079837,63425.0,63424.0,0.012]
[1727135067649,0.1586211,63425.0,63424.0,0.012]
[1727135068945,0.10539773,63425.0,63424.0,0.012]
[1727135076264,0.18423473,63425.0,63424.0,0.012]
[1727135077866,0.2787629,63425.0,63424.0,0.012]
[1727135078365,0.6395629,63425.0,63424.0,0.012]
[1727135078671,1.69687173,63425.0,63424.0,0.012]
[1727135079057,2.33687173,63425.0,63424.0,0.012]
[1727135079452,2.43140133,63425.0,63424.0,0.012]
[1727135079757,2.33687173,63425.0,63424.0,0.012]
[1727135080869,2.34487173,63425.0,63424.0,0.001]
[1727135081563,2.17819773,63425.0,63411.0,0.04705545]
[1727135081771,0.11,63420.0,63415.0,0.0037]
[1727135082068,0.3608,63422.0,63411.0,0.04705545]
[1727135082069,0.078853,63412.0,63411.0,0.05075545]
[1727135082251,0.188853,63412.0,63411.0,0.04705545]
[1727135083155,0.188853,63412.0,63411.0,0.05105545]
[1727135084057,0.188853,63412.0,63411.0,0.004]
[1727135084258,0.188853,63412.0,63411.0,0.008]
[1727135084560,0.21281489,63412.0,63411.0,0.008]
[1727135085263,0.37038663,63412.0,63411.0,0.008]
[1727135085465,0.31723516,63412.0,63411.0,0.007]
[1727135086161,0.31723551,63412.0,63411.0,0.007]
[1727135086369,0.31723551,63412.0,63411.0,0.003]
[1727135086563,0.31723551,63412.0,63411.0,0.006]
[1727135086969,0.07886,63406.0,63405.0,0.0497]
[1727135087267,0.18886,63406.0,63405.0,0.0497]
[1727135088669,0.18886,63406.0,63405.0,0.0537]
[1727135088868,0.18886,63406.0,63405.0,0.0587]
[1727135090963,0.18886,63406.0,63405.0,0.009]
[1727135096772,0.078857,63409.0,63405.0,0.009]
[1727135097084,0.078857,63409.0,63406.0,0.0467]
[1727135097271,0.078857,63409.0,63407.0,0.0959]
[1727135097468,0.11,63411.0,63409.0,0.078856]
[1727135099179,0.11,63411.0,63409.0,0.079856]
[1727135099582,0.111,63411.0,63409.0,0.088856]
[1727135100279,0.111,63411.0,63410.0,0.078855]
[1727135100280,0.001,63411.0,63410.0,0.078855]
[1727135100579,0.002,63411.0,63410.0,0.078855]
[1727135101668,0.002,63411.0,63410.0,0.087855]
[1727135102370,0.002,63411.0,63410.0,0.095855]
[1727135104087,0.38414901,63415.0,63410.0,0.49012]
[1727135104088,0.3608,63415.0,63410.0,0.49012]
[1727135104278,0.0037,63419.0,63418.0,0.078845]
[1727135104579,0.008,63428.0,63418.0,0.078845]
[1727135104580,0.0037,63426.0,63418.0,0.64563047]
[1727135104770,0.078834,63427.0,63425.0,0.3608]
[1727135106376,0.091834,63427.0,63425.0,0.3628]
[1727135106777,0.013,63427.0,63425.0,0.441636]
[1727135106974,0.006,63427.0,63425.0,0.440636]
[1727135107175,0.006,63427.0,63425.0,0.444636]
[1727135107676,0.11,63426.0,63425.0,0.444636]
[1727135107881,0.11,63426.0,63425.0,0.443636]
[1727135108078,0.11,63426.0,63425.0,0.448636]
[1727135109475,0.11,63426.0,63425.0,0.443636]
[1727135109783,0.11,63426.0,63425.0,0.448636]
[1727135115687,0.11,63426.0,63425.0,0.087836]
[1727135119187,0.11,63426.0,63425.0,0.009]
[1727135119500,0.188835,63426.0,63425.0,0.009]
[1727135120887,0.188835,63426.0,63425.0,0.004]
[1727135121193,0.188835,63426.0,63425.0,0.007]
[1727135121590,0.26767,63426.0,63425.0,0.007]
[1727135121897,0.26767,63426.0,63425.0,0.005]
[1727135122096,0.26767,63426.0,63425.0,0.003]
[1727135122301,0.29323246,63426.0,63425.0,0.003]
[1727135122689,0.38748483,63426.0,63425.0,0.003]
[1727135122995,1.36623246,63426.0,63425.0,0.003]
[1727135123293,0.078852,63413.0,63412.0,0.00236513]
[1727135123499,0.549652,63413.0,63412.0,0.00236513]
[1727135124395,0.4708,63413.0,63412.0,0.00236513]
[1727135126325,0.3608,63413.0,63412.0,0.00236513]
[1727135126806,0.38410198,63413.0,63412.0,0.00236513]
[1727135129904,0.02330198,63413.0,63412.0,0.00236513]
[1727135130096,0.439652,63413.0,63412.0,0.00236513]
[1727135133312,0.18380171,63414.0,63412.0,0.08121813]
[1727135133902,0.082542,63422.0,63412.0,0.00236513]
[1727135134108,0.16,63418.0,63412.0,0.00236513]
[1727135134305,0.16,63418.0,63413.0,0.078851]
[1727135134711,0.16,63418.0,63414.0,0.07885]
[1727135135211,0.16,63418.0,63412.0,0.00236513]
[1727135135212,0.16,63418.0,63415.0,0.078849]
[1727135136098,0.16,63418.0,63412.0,0.00236513]